Department Family,Entity,Date,Expenses Type,Expense Area,Supplier,Transaction Number,  Total  ,
Department of Health,The Christie NHS Foundation Trust,24/12/2019,Audit Services,Finance & Business Developm,AINTREE UNIVERSITY HOSPITALS NHS FT,0000632005,"25,593.75",
Department of Health,The Christie NHS Foundation Trust,12/12/2019,Team Engagement Aug- Sept 2019,Capital,AIRE LOGIC LIMITED,0000631129,"39,690.00",
Department of Health,The Christie NHS Foundation Trust,05/12/2019,Team Engagement Oct 2019,Capital,AIRE LOGIC LIMITED,0000631128,"70,536.00",
Department of Health,The Christie NHS Foundation Trust,24/12/2019,Consultancy,Programme Management Offic,AKESO AND COMPANY LIMITED,0000632130,"25,532.45",
Department of Health,The Christie NHS Foundation Trust,13/12/2019,Drugs,Drugs,ALCURA UK LIMITED,0000631904,"71,327.70",
Department of Health,The Christie NHS Foundation Trust,05/12/2019,Drugs,Christie Medical Physics,ALLIANCE MEDICAL RADIOPHARMACY LIMITED,0000630768,"43,771.38",
Department of Health,The Christie NHS Foundation Trust,19/12/2019,PrintManangement Oct 2019-Feb 2020,Digital Services,APOGEE CORPORATION LTD,0000630993,"38,553.84",
Department of Health,The Christie NHS Foundation Trust,05/12/2019,Drugs,Drugs,BAXTER HEALTHCARE LTD,0000629616,"121,882.87",
Department of Health,The Christie NHS Foundation Trust,19/12/2019,Drugs,Drugs,BAXTER HEALTHCARE LTD,0000630474,"840,013.42",
Department of Health,The Christie NHS Foundation Trust,19/12/2019,Drugs,Drugs,BAXTER HEALTHCARE LTD,0000631309,"498,272.69",
Department of Health,The Christie NHS Foundation Trust,24/12/2019,Drugs,Drugs,BAXTER HEALTHCARE LTD,0000631311,"88,647.31",
Department of Health,The Christie NHS Foundation Trust,19/12/2019,Drugs,Drugs,BAXTER HEALTHCARE LTD,0000632424,"351,380.40",
Department of Health,The Christie NHS Foundation Trust,24/12/2019,Drugs,Drugs,BAXTER HEALTHCARE LTD,0000631761,"575,275.13",
Department of Health,The Christie NHS Foundation Trust,19/12/2019,Drugs,Drugs,BAXTER HEALTHCARE LTD,0000631764,"141,907.00",
Department of Health,The Christie NHS Foundation Trust,19/12/2019,Drugs,Drugs,BAXTER HEALTHCARE LTD,0000631765,"142,210.74",
Department of Health,The Christie NHS Foundation Trust,19/12/2019,Drugs,Drugs,BAXTER HEALTHCARE LTD,0000631766,"153,891.19",
Department of Health,The Christie NHS Foundation Trust,19/12/2019,Drugs,Drugs,BAXTER HEALTHCARE LTD,0000631768,"195,106.14",
Department of Health,The Christie NHS Foundation Trust,19/12/2019,Drugs,Drugs,BAXTER HEALTHCARE LTD,0000631771,"127,212.05",
Department of Health,The Christie NHS Foundation Trust,19/12/2019,Drugs,Drugs,BAXTER HEALTHCARE LTD,0000631905,"779,557.42",
Department of Health,The Christie NHS Foundation Trust,05/12/2019,Drugs,Drugs,BOLTON NHS FOUNDATION TRUST,0000600705,"39,136.23",
Department of Health,The Christie NHS Foundation Trust,05/12/2019,Drugs,Drugs,BOLTON NHS FOUNDATION TRUST,0000602695,"40,179.87",
Department of Health,The Christie NHS Foundation Trust,05/12/2019,Drugs,Drugs,BOLTON NHS FOUNDATION TRUST,0000605778,"35,570.25",
Department of Health,The Christie NHS Foundation Trust,05/12/2019,Drugs,Drugs,BOLTON NHS FOUNDATION TRUST,0000608422,"38,341.19",
Department of Health,The Christie NHS Foundation Trust,05/12/2019,Drugs,Drugs,BOLTON NHS FOUNDATION TRUST,0000610408,"32,683.62",
Department of Health,The Christie NHS Foundation Trust,05/12/2019,Drugs,Drugs,BOLTON NHS FOUNDATION TRUST,0000616181,"35,531.60",
Department of Health,The Christie NHS Foundation Trust,05/12/2019,Software Licences,Digital Services,BYTES SOFTWARE SERVICES,0000630888,"26,095.97",
Department of Health,The Christie NHS Foundation Trust,24/12/2019,Fire Safety Service,Estates & Facilities,CHUBB FIRE AND SECURITY LIMITED,0000632031,"26,400.00",
Department of Health,The Christie NHS Foundation Trust,05/12/2019,Consultancy Services,Capital,CIGNITI TECHNOLOGIES UK LTD,0000628893,"25,612.80",
Department of Health,The Christie NHS Foundation Trust,05/12/2019,Medical Equipment Maintenance Contract,Clin Support & Spec Surgery,CPP FACILITIES LLP,0000629831,"215,474.50",
Department of Health,The Christie NHS Foundation Trust,12/12/2019,Medical Equipment Maintenance Contract,Clin Support & Spec Surgery,CPP FACILITIES LLP,0000630624,"265,152.76",
Department of Health,The Christie NHS Foundation Trust,12/12/2019,Medical Equipment Maintenance Contract,Clin Support & Spec Surgery,CPP FACILITIES LLP,0000631148,"215,474.50",
Department of Health,The Christie NHS Foundation Trust,24/12/2019,Medical Equipment Maintenance Contract,Clin Support & Spec Surgery,DRAEGER MEDICAL UK LIMITED,0000631576,"45,973.20",
Department of Health,The Christie NHS Foundation Trust,05/12/2019,Drugs,Drugs,EAST CHESHIRE NHS TRUST,0000614776,"89,884.93",
Department of Health,The Christie NHS Foundation Trust,05/12/2019,Drugs,Drugs,EAST CHESHIRE NHS TRUST,0000619247,"88,367.70",
Department of Health,The Christie NHS Foundation Trust,05/12/2019,Drugs,Drugs,EAST CHESHIRE NHS TRUST,0000619248,"81,168.09",
Department of Health,The Christie NHS Foundation Trust,05/12/2019,Drugs,Drugs,EAST CHESHIRE NHS TRUST,0000621744,"91,259.84",
Department of Health,The Christie NHS Foundation Trust,05/12/2019,Oncology Services Apr-Oct 19,Network Services,EAST CHESHIRE NHS TRUST,0000630719,"312,381.42",
Department of Health,The Christie NHS Foundation Trust,05/12/2019,Oncology Services Nov 19,Network Services,EAST CHESHIRE NHS TRUST,0000630050,"44,625.92",
Department of Health,The Christie NHS Foundation Trust,13/12/2019,Drugs,Drugs,EAST CHESHIRE NHS TRUST,0000624473,"85,458.90",
Department of Health,The Christie NHS Foundation Trust,13/12/2019,Drugs,Drugs,EAST CHESHIRE NHS TRUST,0000627585,"90,052.93",
Department of Health,The Christie NHS Foundation Trust,19/12/2019,Energy Contract- Dec 19,Network Services,EDF ENERGY,0000631602,"42,906.93",
Department of Health,The Christie NHS Foundation Trust,19/12/2019,Energy Contract- Dec 19,Network Services,EDF ENERGY,0000631872,"31,933.27",
Department of Health,The Christie NHS Foundation Trust,24/12/2019,Software Licences,Capital,GE MEDICAL SYSTEMS LIMITED,0000631622,"34,675.20",
Department of Health,The Christie NHS Foundation Trust,24/12/2019,Audit Services,Finance & Business Developm,GRANT THORNTON UK LLP,0000632041,"29,910.00",
Department of Health,The Christie NHS Foundation Trust,12/12/2019,Drugs,Drugs,HEALTHCARE AT HOME LTD,0000630385,"25,078.00",
Department of Health,The Christie NHS Foundation Trust,12/12/2019,Hotel ,School of Oncology,HILTON MANCHESTER DEANSGATE,0000631773,"66,945.70",
Department of Health,The Christie NHS Foundation Trust,24/12/2019,Computer Equipment,Capital,HP INC UK LIMITED,0000631185,"35,205.84",
Department of Health,The Christie NHS Foundation Trust,05/12/2019,Computer Equipment,Digital Services,HP INC UK LIMITED,0000630166,"48,231.48",
Department of Health,The Christie NHS Foundation Trust,05/12/2019,Computer Equipment,Digital Services,HP INC UK LIMITED,0000629875,"67,864.20",
Department of Health,The Christie NHS Foundation Trust,24/12/2019,Computer Equipment,Capital,HP INC UK LIMITED,0000631866,"82,778.40",
Department of Health,The Christie NHS Foundation Trust,24/12/2019,Computer Equipment,Capital,HP INC UK LIMITED,0000630167,"170,793.00",
Department of Health,The Christie NHS Foundation Trust,19/12/2019,Awareness Campaign,Corporate Development,IDEAS BY  MUSIC  LTD,0000631677,"27,609.60",
Department of Health,The Christie NHS Foundation Trust,19/12/2019,Building Contract,Capital,INGHAM AND GARNER LTD,0000629935,"33,059.29",
Department of Health,The Christie NHS Foundation Trust,24/12/2019,NHS Mail Migration ,Digital Services,INSIGHT DIRECT (UK) LTD,0000632627,"134,796.30",
Department of Health,The Christie NHS Foundation Trust,12/12/2019,Paterson Development,Capital,INTEGRATED HEALTH PROJECTS,0000630223,"835,060.82",
Department of Health,The Christie NHS Foundation Trust,05/12/2019,Paterson Development,Capital,INTERSERVE CONSTRUCTION LTD,0000631159,"229,854.30",
Department of Health,The Christie NHS Foundation Trust,24/12/2019,Paterson Development,Capital,INTERSERVE CONSTRUCTION LTD,0000632660,"291,821.70",
Department of Health,The Christie NHS Foundation Trust,24/12/2019,Software Licences,Digital Services,IQ HEALTH TECH LTD,0000626007,"39,000.00",
Department of Health,The Christie NHS Foundation Trust,09/12/2019,Rates 19/20,Estates & Facilities,M/CR CITY COUNCIL (RATES) DD,0000631793,"77,883.00",
Department of Health,The Christie NHS Foundation Trust,24/12/2019,PET Scans Oct 19,Christie Medical Physics,MANCHESTER UNIVERSITY NHS FT,0000631369,"135,582.00",
Department of Health,The Christie NHS Foundation Trust,05/12/2019,Drugs,Drugs,MID CHESHIRE HOSPITALS NHS FT,0000618542,"204,233.56",
Department of Health,The Christie NHS Foundation Trust,05/12/2019,Macmillan Centre Nov 19,Network Services,MID CHESHIRE HOSPITALS NHS FT,0000628899,"47,536.50",
Department of Health,The Christie NHS Foundation Trust,13/12/2019,Drugs,Drugs,MID CHESHIRE HOSPITALS NHS FT,0000614722,"126,852.72",
Department of Health,The Christie NHS Foundation Trust,13/12/2019,Drugs,Drugs,MID CHESHIRE HOSPITALS NHS FT,0000612218,"115,756.40",
Department of Health,The Christie NHS Foundation Trust,24/12/2019,Drugs,Drugs,MID CHESHIRE HOSPITALS NHS FT,0000609383,"83,672.91",
Department of Health,The Christie NHS Foundation Trust,12/12/2019,Blood Products,Network Services,NHS BLOOD AND TRANSPLANT,0000629938,"30,591.93",
Department of Health,The Christie NHS Foundation Trust,16/12/2019,Blood Products,Network Services,NHS BLOOD AND TRANSPLANT,0000632737,"172,291.34",
Department of Health,The Christie NHS Foundation Trust,16/12/2019,NHS Litigation (NHSLA), Quality & Standards,NHS LITIGATION AUTHORITY,0000632880,"111,326.40",
Department of Health,The Christie NHS Foundation Trust,19/12/2019,Medical Equipment,Capital,NHS SUPPLY CHAIN,0000603878,"77,010.15",
Department of Health,The Christie NHS Foundation Trust,13/12/2019,Product Sales Summary,All wards and departments,NHS SUPPLY CHAIN,0000630780,"52,783.44",
Department of Health,The Christie NHS Foundation Trust,19/12/2019,Product Sales Summary,All wards and departments,NHS SUPPLY CHAIN,0000630873,"66,818.95",
Department of Health,The Christie NHS Foundation Trust,13/12/2019,Product Sales Summary,All wards and departments,NHS SUPPLY CHAIN,0000631573,"49,453.83",
Department of Health,The Christie NHS Foundation Trust,13/12/2019,Product Sales Summary,All wards and departments,NHS SUPPLY CHAIN,0000631574,"62,001.95",
Department of Health,The Christie NHS Foundation Trust,05/12/2019,Product Sales Summary,All wards and departments,NHS SUPPLY CHAIN,0000629914,"81,909.83",
Department of Health,The Christie NHS Foundation Trust,24/12/2019,Product Sales Summary,All wards and departments,NHS SUPPLY CHAIN,0000631807,"63,482.47",
Department of Health,The Christie NHS Foundation Trust,12/12/2019,Drugs,Drugs,NOVARTIS PHARMACEUTICALS UK LTD,0000629205,"257,184.00",
Department of Health,The Christie NHS Foundation Trust,05/12/2019,Electronic Equipment ,Capital,PMT GB LTD,0000628594,"41,270.40",
Department of Health,The Christie NHS Foundation Trust,05/12/2019,Software Licences,Digital Services,SOFTCAT PLC,0000629773,"91,618.70",
Department of Health,The Christie NHS Foundation Trust,12/12/2019,Translation Services,Clin Support & Spec Surgery,STOCKPORT MBC,0000631256,"25,753.91",
Department of Health,The Christie NHS Foundation Trust,05/12/2019,Software Licences,Digital Services,SYSTEM C HEALTHCARE,0000629351,"27,334.80",
Department of Health,The Christie NHS Foundation Trust,12/12/2019,Blood Products,Network Services,THE ANTHONY NOLAN BONE MARROW,0000630869,"26,345.15",
Department of Health,The Christie NHS Foundation Trust,05/12/2019,Drugs,Drugs,THE CHRISTIE CLINIC (HCA),0000627825,"39,696.00",
Department of Health,The Christie NHS Foundation Trust,05/12/2019,Drugs,Drugs,THE CHRISTIE CLINIC (HCA),0000629406,"42,300.00",
Department of Health,The Christie NHS Foundation Trust,12/12/2019,Patient Testing Service ,Clin Support & Spec Surgery,THE CHRISTIE PATHOLOGY PARTNERSHIP LLP,0000631143,"377,837.20",
Department of Health,The Christie NHS Foundation Trust,05/12/2019,Patient Testing Service ,Clin Support & Spec Surgery,THE CHRISTIE PATHOLOGY PARTNERSHIP LLP,0000629833,"377,837.20",
Department of Health,The Christie NHS Foundation Trust,12/12/2019,Patient Testing Service ,Clin Support & Spec Surgery,THE CHRISTIE PATHOLOGY PARTNERSHIP LLP,0000630579,"464,948.61",
Department of Health,The Christie NHS Foundation Trust,05/12/2019,Drugs,Drugs,THE CHRISTIE PHARMACY LIMITED,0000631236,"2,636,551.00",
Department of Health,The Christie NHS Foundation Trust,24/12/2019,Drugs,Drugs,THE CHRISTIE PHARMACY LIMITED,0000632426,"559,150.13",
Department of Health,The Christie NHS Foundation Trust,12/12/2019,Service Contract,Network Services,VARIAN MEDICAL SYSTEMS UK LTD,0000629174,"177,000.00",
Department of Health,The Christie NHS Foundation Trust,05/12/2019,Energy Contract- Oct 19,Estates & Facilities,VEOLIA ENERGY &UTILITY SERVICES UK PLC,0000629826,"175,609.67",
Department of Health,The Christie NHS Foundation Trust,05/12/2019,Broadband Services,Digital Services,VIRGIN MEDIA BUSINESS,0000629017,"93,127.68",
Department of Health,The Christie NHS Foundation Trust,19/12/2019,Water Oct 19,Estates & Facilities,WATER PLUS,0000631137,"60,483.64",
Department of Health,The Christie NHS Foundation Trust,05/12/2019,Clinical Charge May 19,Network Services,WRIGHTINGTON WIGAN AND LEIGH NHS FT,0000616380,"264,086.00",
Department of Health,The Christie NHS Foundation Trust,05/12/2019,Clinical Charge Apr 19,Network Services,WRIGHTINGTON WIGAN AND LEIGH NHS FT,0000616381,"264,086.00",
Department of Health,The Christie NHS Foundation Trust,05/12/2019,Clinical Charge Jun 19,Network Services,WRIGHTINGTON WIGAN AND LEIGH NHS FT,0000617812,"264,086.00",
Department of Health,The Christie NHS Foundation Trust,05/12/2019,Clinical Charge Jul 19,Network Services,WRIGHTINGTON WIGAN AND LEIGH NHS FT,0000620261,"264,086.00",
Department of Health,The Christie NHS Foundation Trust,05/12/2019,Clinical Charge Aug 19,Network Services,WRIGHTINGTON WIGAN AND LEIGH NHS FT,0000622645,"264,086.00",
Department of Health,The Christie NHS Foundation Trust,05/12/2019,Clinical Charge Sep 19,Network Services,WRIGHTINGTON WIGAN AND LEIGH NHS FT,0000626998,"264,086.00",
